fUST/lending_fUST_20250206
["ID","MTS","AMOUNT","RATE_DAILY","PERIOD"]
[351742904,1738773046320,-192.047586,0.00015254,2]
[351742905,1738773046330,-151.0,0.00015254,2]
[351742908,1738773046341,-151.0,0.00015254,2]
[351742909,1738773046351,-203.42717522,0.00015272,2]
[351742912,1738773046360,-500.0,0.00015273,2]
[351742913,1738773046370,-500.0,0.00015273,2]
[351742916,1738773046380,-500.0,0.00015273,2]
[351742917,1738773046389,-579.7341961,0.00015273,2]
[351742919,1738773046399,-500.8775182,0.00015273,2]
[351742921,1738773046409,-500.0,0.00015273,2]
[351742923,1738773046419,-356.16899759,0.00015273,2]
[351742925,1738773046430,-500.0,0.00015286,2]
[351742927,1738773046441,-15616.49,0.00015286,2]
[351742929,1738773046451,-545.04,0.00015286,2]
[351742932,1738773046461,-500.0,0.00015286,2]
[351742933,1738773046471,-7700.72,0.00015286,2]
[351742935,1738773046480,-6043.89,0.00015286,2]
[351742938,1738773046491,-500.0,0.00015286,2]
[351742940,1738773046501,-3285.7,0.00015286,2]
[351742941,1738773046514,-500.0,0.00015286,2]
[351742945,1738773046525,-2745.45,0.00015286,2]
[351742946,1738773046535,-1210.11,0.00015286,2]
[351742949,1738773046546,-588.17,0.00015286,2]
[351742952,1738773046557,-500.0,0.00015286,2]
[351742955,1738773046567,-1109.99,0.00015286,2]
[351742957,1738773046577,-556.29751977,0.00015286,2]
[351742958,1738773046588,-500.0,0.00015286,2]
[351742960,1738773046599,-956.66,0.00015286,2]
[351742962,1738773046609,-500.0,0.00015286,2]
[351742964,1738773046619,-2920.16,0.00015286,2]
[351742967,1738773046629,-2788.74,0.00015286,2]
[351742969,1738773046640,-7309.33,0.00015286,2]
[351742971,1738773046650,-2542.2,0.00015286,2]
[351742973,1738773046659,-566.31,0.00015286,2]
[351742974,1738773046669,-5429.8,0.00015286,2]
[351742976,1738773046679,-1246.6,0.00015286,2]
[351742978,1738773046690,-2045.04,0.00015286,2]
[351742980,1738773046699,-612.11,0.00015286,2]
[351742982,1738773046710,-500.0,0.00015286,2]
[351742984,1738773046725,-755.32,0.00015286,2]
[351742986,1738773046735,-2806.27,0.00015286,2]
[351742988,1738773046747,-500.0,0.00015286,2]
[351742990,1738773046760,-1052.17,0.00015286,2]
[351742992,1738773046774,-3151.99,0.00015286,2]
[351742994,1738773046785,-500.0,0.00015286,2]
[351742996,1738773046795,-8572.0,0.00015286,2]
[351742998,1738773046807,-500.0,0.00015286,2]
[351743000,1738773046818,-3790.77,0.00015286,2]
[351743002,1738773046828,-1399.08,0.00015286,2]
[351743004,1738773046838,-500.0,0.00015286,2]
[351743006,1738773046850,-723.38,0.00015286,2]
[351743008,1738773046860,-3099.48,0.00015286,2]
[351743010,1738773046870,-500.0,0.00015286,2]
[351743012,1738773046881,-764.86,0.00015286,2]
[351743014,1738773046893,-500.0,0.00015286,2]
[351743016,1738773046904,-2891.87,0.00015286,2]
[351743018,1738773046914,-9131.21,0.00015286,2]
[351743021,1738773046924,-579.56,0.00015286,2]
[351743022,1738773046933,-4087.23,0.00015286,2]
[351743025,1738773046943,-768.4,0.00015286,2]
[351743027,1738773046953,-692.17,0.00015286,2]
[351743029,1738773046962,-500.0,0.00015286,2]
[351743031,1738773046971,-536.03,0.00015287,2]
[351743033,1738773046980,-500.0,0.00015287,2]
[351743034,1738773046990,-1146.92,0.00015287,2]
[351743036,1738773046999,-3247.68,0.00015287,2]
[351743038,1738773047010,-500.0,0.00015287,2]
[351743040,1738773047019,-530.16,0.00015287,2]
[351743042,1738773047028,-500.0,0.00015287,2]
[351743044,1738773047038,-586.55,0.00015287,2]
[351743046,1738773047048,-2097.91,0.00015287,2]
[351743048,1738773047058,-1056.72,0.00015287,2]
[351743051,1738773047068,-548.66,0.00015287,2]
[351743053,1738773047077,-500.0,0.00015287,2]
[351743054,1738773047086,-1585.19,0.00015287,2]
[351743057,1738773047096,-352.54752496,0.00015287,2]
[351743058,1738773047105,-1492.83,0.00015287,2]
[351743061,1738773047114,-500.0,0.00015287,2]
[351743062,1738773047124,-672.6,0.00015287,2]
[351743065,1738773047134,-500.0,0.00015287,2]
[351743078,1738773047256,-1755.98,0.00015287,2]
[351743081,1738773047269,-1162.4,0.00015287,2]
[351743083,1738773047279,-1584.73,0.00015287,2]
[351743085,1738773047289,-848.5,0.00015287,2]
[351743087,1738773047299,-500.0,0.00015287,2]
[351743089,1738773047308,-500.0,0.00015287,2]
[351743091,1738773047318,-500.0,0.00015287,2]
[351743093,1738773047327,-1555.15,0.00015287,2]
[351743095,1738773047336,-500.0,0.00015287,2]
[351743097,1738773047346,-1672.48,0.00015287,2]
[351743099,1738773047356,-500.0,0.00015287,2]
[351743101,1738773047367,-1080.09,0.00015287,2]
[351743104,1738773047377,-500.0,0.00015287,2]
[351743105,1738773047386,-2016.92,0.00015287,2]
[351743108,1738773047396,-538.45,0.00015287,2]
[351743110,1738773047405,-500.0,0.00015287,2]
[351743111,1738773047415,-1154.14,0.00015287,2]
[351743113,1738773047424,-2598.05,0.00015287,2]
[351743115,1738773047433,-1010.65,0.00015287,2]
[351743118,1738773047443,-500.0,0.00015287,2]
[351743119,1738773047453,-500.0,0.00015287,2]
[351743122,1738773047463,-1352.04,0.00015287,2]
[351743124,1738773047473,-500.0,0.00015287,2]
[351743126,1738773047483,-500.0,0.00015287,2]
[351743128,1738773047493,-500.0,0.00015287,2]
[351743130,1738773047503,-500.0,0.00015287,2]
[351743132,1738773047517,-639.24,0.00015287,2]
[351743134,1738773047527,-500.0,0.00015287,2]
[351743136,1738773047538,-500.0,0.00015287,2]
[351743138,1738773047549,-500.0,0.00015287,2]
[351743140,1738773047560,-500.0,0.00015287,2]
[351743142,1738773047570,-751.11,0.00015287,2]
[351743144,1738773047580,-500.0,0.00015287,2]
[351743146,1738773047590,-500.0,0.00015287,2]
[351743148,1738773047600,-500.0,0.00015287,2]
[351743150,1738773047610,-500.0,0.00015287,2]
[351743152,1738773047621,-817.95,0.00015287,2]
[351743154,1738773047631,-1003.56,0.00015287,2]
[351743156,1738773047641,-3401.58,0.00015287,2]
[351743158,1738773047651,-500.0,0.00015287,2]
[351743160,1738773047662,-500.0,0.00015287,2]
[351743162,1738773047672,-160.82808555,0.00015287,2]
[351743164,1738773047683,-687.68,0.00015287,2]
[351743166,1738773047693,-8549.77,0.00015287,2]
[351743168,1738773047703,-500.0,0.00015287,2]
[351743170,1738773047714,-495.71475009,0.00015287,2]
[351743173,1738773047726,-500.0,0.00015287,2]
[351743175,1738773047737,-500.0,0.00015287,2]
[351743177,1738773047747,-1581.9,0.00015287,2]
[351743179,1738773047758,-500.0,0.00015287,2]
[351743181,1738773047773,-500.0,0.00015287,2]
[351743183,1738773047783,-500.0,0.00015287,2]
[351743185,1738773047794,-603.69,0.00015287,2]
[351743187,1738773047806,-3079.8,0.00015287,2]
[351743189,1738773047816,-564.60401182,0.00015287,2]
[351743191,1738773047827,-500.0,0.00015287,2]
[351743193,1738773047837,-1740.6,0.00015287,2]
[351743195,1738773047847,-40551.9,0.00015287,2]
[351743197,1738773047856,-1474.86,0.00015287,2]
[351743199,1738773047866,-1207.92,0.00015287,2]
[351743201,1738773047876,-500.0,0.00015287,2]
[351743203,1738773047886,-5627.83,0.00015287,2]
[351743205,1738773047899,-151.0,0.00015287,2]
[351743207,1738773047910,-558.47,0.00015287,2]
[351743209,1738773047920,-670.4,0.00015287,2]
[351743211,1738773047930,-742.19,0.00015287,2]
[351743213,1738773047940,-500.0,0.00015287,2]
[351743215,1738773047951,-2659.05,0.00015287,2]
[351743217,1738773047962,-500.0,0.00015287,2]
[351743219,1738773047973,-1719.77,0.00015287,2]
[351743221,1738773047983,-669.88,0.00015287,2]
[351743223,1738773047994,-2820.32,0.00015287,2]
[351743225,1738773048004,-151.0,0.00015287,2]
[351743227,1738773048016,-500.0,0.00015287,2]
[351743229,1738773048025,-500.0,0.00015287,2]
[351743231,1738773048035,-1030.21,0.00015287,2]
[351743234,1738773048046,-522.53,0.00015287,2]
[351743236,1738773048056,-151.0,0.00015287,2]
[351743238,1738773048067,-121705.47,0.00015287,2]
[351743240,1738773048078,-500.0,0.00015287,2]
[351743242,1738773048088,-500.0,0.00015287,2]
[351743244,1738773048099,-151.0,0.00015287,2]
[351743246,1738773048109,-500.0,0.00015287,2]
[351743248,1738773048119,-5066.08,0.00015287,2]
[351743250,1738773048129,-500.0,0.00015287,2]
[351743252,1738773048139,-634.22,0.00015287,2]
[351743254,1738773048150,-500.0,0.00015287,2]
[351743256,1738773048160,-3054.71,0.00015287,2]
[351743258,1738773048171,-606.85,0.00015287,2]
[351743260,1738773048181,-500.0,0.00015287,2]
[351743262,1738773048191,-222.15928418,0.00015287,2]
[351743264,1738773048201,-500.0,0.00015287,2]
[351743266,1738773048212,-795.12,0.00015287,2]
[351743268,1738773048223,-637.14,0.00015287,2]
[351743270,1738773048233,-500.0,0.00015287,2]
[351743272,1738773048244,-500.0,0.00015287,2]
[351743274,1738773048254,-34824.4,0.00015287,2]
[351743276,1738773048267,-151.0,0.00015287,2]
[351743279,1738773048289,-500.0,0.00015287,2]
[351743282,1738773048308,-151.0,0.00015287,2]
[351743284,1738773048323,-500.0,0.00015287,2]
[351743287,1738773048340,-500.0,0.00015287,2]
[351743290,1738773048358,-500.0,0.00015287,2]
[351743293,1738773048379,-2959.07,0.00015287,2]
[351743295,1738773048399,-500.0,0.00015287,2]
[351743298,1738773048414,-500.0,0.00015287,2]
[351743301,1738773048432,-500.0,0.00015287,2]
[351743303,1738773048446,-859.9,0.00015287,2]
[351743306,1738773048463,-500.0,0.00015287,2]
[351743308,1738773048479,-500.0,0.00015287,2]
[351743311,1738773048498,-500.0,0.00015288,2]
[351743313,1738773048515,-500.0,0.00015288,2]
[351743316,1738773048534,-500.0,0.00015288,2]
[351743319,1738773048550,-500.0,0.00015288,2]
[351743321,1738773048563,-500.0,0.00015288,2]
[351743324,1738773048580,-500.0,0.00015288,2]
[351743326,1738773048599,-500.0,0.00015288,2]
[351743329,1738773048614,-500.0,0.00015288,2]
[351743332,1738773048631,-500.0,0.00015288,2]
[351743335,1738773048650,-500.0,0.00015288,2]
[351743337,1738773048663,-500.0,0.00015288,2]
[351743340,1738773048680,-522.62,0.00015288,2]
[351743342,1738773048694,-623.31365207,0.00015288,2]
[351743345,1738773048710,-559.17,0.00015288,2]
[351743347,1738773048727,-500.0,0.00015288,2]
[351743349,1738773048743,-500.0,0.00015288,2]
[351743352,1738773048760,-500.0,0.00015288,2]
[351743354,1738773048775,-500.0,0.00015288,2]
[351743357,1738773048791,-539.05970564,0.00015288,2]
[351743359,1738773048809,-500.0,0.00015288,2]
[351743362,1738773048824,-500.0,0.00015288,2]
[351743364,1738773048838,-500.0,0.00015288,2]
[351743367,1738773048855,-500.0,0.00015288,2]
[351743369,1738773048872,-502.61,0.00015288,2]
[351743372,1738773048888,-500.0,0.00015288,2]
[351743374,1738773048905,-524.39,0.00015288,2]
[351743377,1738773048925,-500.0,0.00015288,2]
[351743380,1738773048941,-729.22,0.00015288,2]
[351743382,1738773048957,-500.0,0.00015288,2]
[351743385,1738773048973,-500.0,0.00015288,2]
[351743387,1738773048989,-500.0,0.00015288,2]
[351743389,1738773049005,-500.0,0.00015288,2]
[351743392,1738773049024,-500.0,0.00015288,2]
[351743394,1738773049040,-500.0,0.00015288,2]
[351743396,1738773049055,-1781.83,0.00015288,2]
[351743399,1738773049070,-500.0,0.00015288,2]
[351743401,1738773049084,-702.38,0.00015288,2]
[351743403,1738773049099,-500.0,0.00015288,2]
[351743406,1738773049114,-500.0,0.00015288,2]
[351743408,1738773049130,-890.05,0.00015288,2]
[351743411,1738773049147,-500.0,0.00015288,2]
[351743413,1738773049164,-500.0,0.00015288,2]
[351743416,1738773049179,-500.0,0.00015288,2]
[351743418,1738773049196,-500.0,0.00015288,2]
[351743420,1738773049211,-500.0,0.00015288,2]
[351743423,1738773049225,-500.0,0.00015288,2]
[351743425,1738773049240,-500.0,0.00015288,2]
[351743428,1738773049255,-678.83,0.00015288,2]
[351743430,1738773049274,-702.43,0.00015288,2]
[351743432,1738773049289,-516.45699356,0.00015288,2]
[351743435,1738773049304,-500.0,0.00015288,2]
[351743437,1738773049318,-618.25,0.00015288,2]
[351743439,1738773049334,-1227.14,0.00015288,2]
[351743442,1738773049349,-504.63112114,0.00015288,2]
[351743444,1738773049365,-837.98,0.00015288,2]
[351743446,1738773049382,-540.94,0.00015288,2]
[351743448,1738773049397,-500.0,0.00015288,2]
[351743451,1738773049413,-500.0,0.00015288,2]
[351743452,1738773049428,-517.78911673,0.00015288,2]
[351743453,1738773049443,-500.0,0.00015288,2]
[351743454,1738773049457,-500.0,0.00015288,2]
[351743455,1738773049472,-811.41,0.00015288,2]
[351743456,1738773049486,-500.0,0.00015288,2]
[351743457,1738773049503,-500.0,0.00015288,2]
[351743458,1738773049520,-500.0,0.00015288,2]
[351743459,1738773049535,-500.0,0.00015288,2]
[351743460,1738773049549,-500.0,0.00015288,2]
[351743461,1738773049563,-500.0,0.00015288,2]
[351743462,1738773049578,-500.0,0.00015288,2]
[351743463,1738773049592,-500.0,0.00015288,2]
[351743464,1738773049605,-500.0,0.00015288,2]
[351743466,1738773049620,-536.76494534,0.00015288,2]
[351743467,1738773049633,-500.0,0.00015288,2]
[351743468,1738773049648,-500.0,0.00015288,2]
[351743469,1738773049661,-534.5336951,0.00015288,2]
[351743470,1738773049676,-500.0,0.00015288,2]
[351743471,1738773049690,-500.0,0.00015288,2]
[351743472,1738773049703,-500.0,0.00015288,2]
[351743473,1738773049718,-500.0,0.00015288,2]
[351743476,1738773049734,-500.0,0.00015288,2]
[351743478,1738773049748,-701.2,0.00015288,2]
[351743480,1738773049759,-681.38,0.00015288,2]
[351743481,1738773049773,-500.0,0.00015288,2]
[351743483,1738773049783,-551.44,0.00015288,2]
[351743485,1738773049794,-500.0,0.00015288,2]
[351743487,1738773049812,-500.0,0.00015288,2]
[351743495,1738773050044,-500.0,0.00015288,2]
[351743499,1738773050075,-500.0,0.00015288,2]
[351743500,1738773050086,-500.0,0.00015288,2]
[351743502,1738773050096,-500.0,0.00015288,2]
[351743504,1738773050106,-631.58,0.00015288,2]
[351743506,1738773050115,-500.0,0.00015288,2]
[351743508,1738773050125,-500.0,0.00015288,2]
[351743510,1738773050134,-500.0,0.00015288,2]
[351743511,1738773050144,-500.0,0.00015288,2]
[351743512,1738773050154,-500.0,0.00015288,2]
[351743513,1738773050164,-500.0,0.00015288,2]
[351743514,1738773050173,-1375.8,0.00015288,2]
[351743515,1738773050182,-500.0,0.00015288,2]
[351743516,1738773050192,-508.1595289,0.00015288,2]
[351743517,1738773050202,-500.0,0.00015288,2]
[351743518,1738773050211,-500.0,0.00015288,2]
[351743520,1738773050220,-500.0,0.00015288,2]
[351743522,1738773050230,-868.05,0.00015288,2]
[351743524,1738773050239,-500.0,0.00015288,2]
[351743526,1738773050249,-407.41946547,0.00015288,2]
[351743527,1738773050259,-500.0,0.00015288,2]
[351743529,1738773050270,-559.41917771,0.00015288,2]
[351743531,1738773050279,-500.0,0.00015288,2]
[351743533,1738773050288,-500.0,0.00015288,2]
[351743534,1738773050298,-500.0,0.00015288,2]
[351743536,1738773050307,-810.23,0.00015288,2]
[351743538,1738773050317,-500.0,0.00015288,2]
[351743540,1738773050326,-500.0,0.00015288,2]
[351743541,1738773050335,-500.0,0.00015288,2]
[351743543,1738773050344,-523.90169399,0.00015288,2]
[351743545,1738773050353,-151.0,0.00015288,2]
[351743547,1738773050361,-1249.21,0.00015288,2]
[351743548,1738773050371,-500.0,0.00015288,2]
[351743549,1738773050381,-500.0,0.00015288,2]
[351743550,1738773050390,-500.0,0.00015288,2]
[351743551,1738773050399,-500.0,0.00015288,2]
[351743552,1738773050409,-500.0,0.00015288,2]
[351743553,1738773050418,-500.0,0.00015288,2]
[351743554,1738773050427,-500.0,0.00015288,2]
[351743555,1738773050437,-500.0,0.00015288,2]
[351743556,1738773050447,-500.0,0.00015288,2]
[351743557,1738773050457,-500.0,0.00015288,2]
[351743558,1738773050466,-500.0,0.00015288,2]
[351743559,1738773050475,-500.0,0.00015288,2]
[351743560,1738773050485,-500.0,0.00015288,2]
[351743561,1738773050494,-500.0,0.00015288,2]
[351743562,1738773050503,-500.0,0.00015288,2]
[351743563,1738773050515,-500.0,0.00015288,2]
[351743564,1738773050525,-500.0,0.00015288,2]
[351743565,1738773050535,-500.0,0.00015288,2]
[351743566,1738773050545,-500.0,0.00015288,2]
[351743567,1738773050555,-568.38,0.00015288,2]
[351743568,1738773050566,-500.0,0.00015288,2]
[351743569,1738773050576,-500.0,0.00015288,2]
[351743570,1738773050586,-500.0,0.00015288,2]
[351743571,1738773050597,-500.0,0.00015288,2]
[351743572,1738773050607,-500.0,0.00015288,2]
[351743573,1738773050616,-500.0,0.00015288,2]
[351743574,1738773050626,-861.59,0.00015288,2]
[351743575,1738773050637,-320.52915712,0.00015288,2]
[351743576,1738773050648,-1046.6,0.00015288,2]
[351743577,1738773050657,-500.0,0.00015288,2]
[351743578,1738773050667,-500.0,0.00015288,2]
[351743579,1738773050678,-761.03,0.00015288,2]
[351743580,1738773050688,-503.38929507,0.00015288,2]
[351743581,1738773050699,-500.0,0.00015288,2]
[351743582,1738773050712,-500.0,0.00015288,2]
[351743583,1738773050725,-500.0,0.00015288,2]
[351743584,1738773050736,-652.03,0.00015288,2]
[351743585,1738773050746,-916.12,0.00015288,2]
[351743586,1738773050757,-500.0,0.00015288,2]
[351743587,1738773050773,-699.23,0.00015288,2]
[351743588,1738773050784,-579.91,0.00015288,2]
[351743589,1738773050794,-500.0,0.00015288,2]
[351743590,1738773050806,-989.8,0.00015288,2]
[351743591,1738773050816,-493.30802377,0.00015288,2]
[351743592,1738773050826,-500.0,0.00015288,2]
[351743593,1738773050836,-500.0,0.00015288,2]
[351743594,1738773050846,-500.0,0.00015288,2]
[351743595,1738773050858,-529.59,0.00015288,2]
[351743596,1738773050873,-1608.34,0.00015288,2]
[351743597,1738773050887,-500.0,0.00015288,2]
[351743598,1738773050898,-500.0,0.00015288,2]
[351743599,1738773050909,-188.0,0.00015288,2]
[351743600,1738773050919,-502.5275146,0.00015288,2]
[351743601,1738773050930,-500.0,0.00015288,2]
[351743602,1738773050940,-151.0,0.00015288,2]
[351743603,1738773050951,-500.0,0.00015288,2]
[351743604,1738773050962,-500.0,0.00015288,2]
[351743605,1738773050972,-151.0,0.00015288,2]
[351743606,1738773050983,-151.0,0.00015288,2]
[351743607,1738773050993,-151.899016,0.00015288,2]
[351743608,1738773051003,-500.0,0.00015288,2]
[351743609,1738773051018,-500.0,0.00015288,2]
[351743610,1738773051028,-1040.01,0.00015288,2]
[351743611,1738773051039,-500.0,0.00015288,2]
[351743612,1738773051049,-500.0,0.00015288,2]
[351743613,1738773051059,-500.0,0.00015288,2]
[351743614,1738773051069,-889.09,0.00015288,2]
[351743615,1738773051079,-827.88,0.00015288,2]
[351743616,1738773051088,-500.0,0.00015288,2]
[351743617,1738773051098,-500.0,0.00015288,2]
[351743618,1738773051109,-500.0,0.00015288,2]
[351743619,1738773051119,-500.0,0.00015288,2]
[351743620,1738773051129,-1801.84,0.00015288,2]
[351743621,1738773051140,-478.70808972,0.00015288,2]
[351743622,1738773051149,-180.14438665,0.00015288,2]
[351743623,1738773051159,-500.0,0.00015288,2]
[351743624,1738773051169,-500.0,0.00015288,2]
[351743625,1738773051179,-231.74917396,0.00015288,2]
[351743626,1738773051190,-300.0,0.00015288,2]
[351743627,1738773051199,-500.0,0.00015288,2]
[351743628,1738773051209,-500.0,0.00015288,2]
[351743629,1738773051220,-500.0,0.00015288,2]
[351743630,1738773051230,-500.0,0.00015288,2]
[351743631,1738773051240,-605.33,0.00015288,2]
[351743632,1738773051249,-151.0,0.00015288,2]
[351743633,1738773051259,-500.0,0.00015288,2]
[351743634,1738773051271,-500.0,0.00015288,2]
[351743635,1738773051281,-151.0,0.00015288,2]
[351743636,1738773051291,-500.0,0.00015288,2]
[351743637,1738773051301,-500.0,0.00015288,2]
[351743638,1738773051312,-500.0,0.00015288,2]
[351743639,1738773051322,-484.52881508,0.00015288,2]
[351743640,1738773051597,-15.47118492,0.00015288,2]
[351743641,1738773051607,-500.0,0.00015288,2]
[351743642,1738773051617,-160.70294665,0.00015288,2]
[351743643,1738773051629,-339.29705335,0.00015288,2]
[351743644,1738773051639,-623.65312254,0.00015288,2]
[351743645,1738773051649,-507.34960727,0.00015288,2]
[351743646,1738773051659,-500.0,0.00015288,2]
[351743647,1738773051671,-1078.35,0.00015288,2]
[351743648,1738773051681,-500.0,0.00015288,2]
[351743649,1738773051691,-151.0,0.00015288,2]
[351743650,1738773051701,-500.0,0.00015288,2]
[351743651,1738773051711,-500.0,0.00015288,2]
[351743652,1738773051723,-500.0,0.00015288,2]
[351743653,1738773051734,-500.0,0.00015288,2]
[351743654,1738773051744,-1033.90601121,0.00015288,2]
[351743655,1738773051754,-93.63024131,0.00015288,2]
[351743656,1738773051770,-57.36975869,0.00015288,2]
[351743657,1738773051780,-500.0,0.00015288,2]
[351743658,1738773051790,-500.0,0.00015288,2]
[351743659,1738773051803,-1122.25,0.00015288,2]
[351743660,1738773051814,-533.87,0.00015288,2]
[351743661,1738773051824,-500.0,0.00015288,2]
[351743662,1738773051834,-500.0,0.00015288,2]
[351743663,1738773051845,-500.0,0.00015288,2]
[351743664,1738773051855,-500.0,0.00015288,2]
[351743665,1738773051865,-500.0,0.00015288,2]
[351743666,1738773051876,-500.0,0.00015288,2]
[351743667,1738773051886,-500.0,0.00015288,2]
[351743668,1738773051897,-151.0,0.00015288,2]
[351743669,1738773051907,-1737.39,0.00015288,2]
[351743670,1738773051916,-151.0,0.00015288,2]
[351743671,1738773051927,-591.83994075,0.00015288,2]
[351743672,1738773051938,-500.0,0.00015288,2]
[351743673,1738773051949,-500.0,0.00015288,2]
[351743674,1738773051958,-640.31,0.00015288,2]
[351743675,1738773051968,-223.076094,0.00015288,2]
[351743676,1738773051978,-616.32,0.00015288,2]
[351743677,1738773051988,-223.076094,0.00015288,2]
[351743678,1738773051999,-500.0,0.00015288,2]
[351743679,1738773052009,-500.0,0.00015288,2]
[351743680,1738773052025,-500.0,0.00015288,2]
[351743681,1738773052036,-1067.56,0.00015288,2]
[351743682,1738773052046,-311.36173133,0.00015288,2]
[351743683,1738773052335,-500.0,0.00015151,2]
[351743684,1738773052345,-517.66826867,0.00015288,2]
[351743685,1738773052355,-253.22,0.00015288,2]
[351743686,1738773052366,-151.0,0.0001529,2]
[351743687,1738773052376,-446.670993,0.0001529,2]
[351743688,1738773052388,-446.670993,0.0001529,2]
[351743689,1738773052399,-151.0,0.0001529,2]
[351743690,1738773052410,-151.0,0.0001529,2]
[351743691,1738773052421,-151.0,0.0001529,2]
[351743692,1738773052432,-151.0,0.0001529,2]
[351743693,1738773052444,-151.0,0.0001529,2]
[351743694,1738773052456,-223.076094,0.0001529,2]
[351743695,1738773052466,-223.076094,0.0001529,2]
[351743696,1738773052478,-151.0,0.000153,2]
[351743697,1738773052488,-151.0,0.000153,2]
[351743698,1738773052501,-151.0,0.000153,2]
[351743699,1738773052515,-151.0,0.000153,2]
[351743700,1738773052525,-1079.80178073,0.00015323,2]
[351743701,1738773052535,-1079.80178073,0.00015323,2]
[351743702,1738773052545,-1079.80178073,0.00015323,2]
[351743703,1738773052555,-1079.80178073,0.00015323,2]
[351743704,1738773052565,-1079.80178073,0.00015323,2]
[351743705,1738773052575,-1079.80178073,0.00015323,2]
[351743706,1738773052585,-1079.80178073,0.00015323,2]
[351743707,1738773052595,-1079.80178073,0.00015323,2]
[351743708,1738773052605,-1079.80178073,0.00015323,2]
[351743709,1738773052616,-1079.80178073,0.00015323,2]
[351743710,1738773052626,-1079.80178073,0.00015323,2]
[351743711,1738773052636,-1079.80178073,0.00015323,2]
[351743712,1738773052646,-1079.80178073,0.00015323,2]
[351743713,1738773052656,-1079.80178073,0.00015323,2]
[351743714,1738773052666,-1079.80178073,0.00015323,2]
[351743715,1738773052676,-1079.80178073,0.00015323,2]
[351743716,1738773052685,-1079.80178073,0.00015323,2]
[351743717,1738773052695,-1079.80178073,0.00015323,2]
[351743718,1738773052705,-1079.80178073,0.00015323,2]
[351743719,1738773052719,-1079.8,0.00015323,2]
[351743720,1738773052729,-215.33447586,0.00015323,2]
[351743721,1738773052740,-215.33,0.00015323,2]
[351743722,1738773052913,-795.36,0.00015326,2]
[351743723,1738773052924,-183.23320855,0.00015326,2]
[351743724,1738773052933,-240.0,0.00015354,2]
[351743725,1738773052943,-240.0,0.00015354,2]
[351743726,1738773052952,-240.0,0.00015354,2]
[351743727,1738773052962,-240.0,0.00015354,2]
[351743728,1738773052972,-240.0,0.00015354,2]
[351743729,1738773052982,-240.0,0.00015354,2]
[351743730,1738773052991,-240.0,0.00015354,2]
[351743731,1738773053001,-240.0,0.00015354,2]
[351743732,1738773053010,-240.0,0.00015354,2]
[351743733,1738773053023,-240.0,0.00015354,2]
[351743734,1738773053032,-240.0,0.00015354,2]
[351743735,1738773053042,-240.0,0.00015354,2]
[351743736,1738773053052,-240.0,0.00015354,2]
[351743737,1738773053062,-240.0,0.00015354,2]
[351743738,1738773053072,-262.0,0.00015354,2]
[351743739,1738773053081,-262.0,0.00015354,2]